fUST/lending_fUST_20250715
["ID","MTS","AMOUNT","RATE_DAILY","PERIOD"]
[372125139,1752528656262,-151.0,0.000249,7]
[372125140,1752528656271,-151.0,0.000249,7]
[372125141,1752528656283,-151.0,0.000249,7]
[372125142,1752528656293,-151.0,0.000249,7]
[372125143,1752528656302,-151.0,0.000249,7]
[372125144,1752528656312,-151.0,0.000249,7]
[372125145,1752528656322,-151.0,0.000249,7]
[372125146,1752528656331,-151.0,0.000249,7]
[372125147,1752528656341,-151.0,0.000249,7]
[372125148,1752528656350,-151.0,0.000249,7]
[372125149,1752528656359,-210.405118,0.000249,7]
[372125150,1752528656368,-210.405118,0.000249,7]
[372125151,1752528656377,-151.0,0.000249,7]
[372125152,1752528656387,-151.0,0.000249,7]
[372125153,1752528656396,-151.0,0.000249,7]
[372125154,1752528656406,-151.0,0.000249,7]
[372125155,1752528656419,-151.0,0.000249,7]
[372125156,1752528656429,-151.0,0.000249,7]
[372125157,1752528656439,-151.0,0.000249,7]
[372125158,1752528656448,-151.0,0.000249,7]
[372125159,1752528656458,-151.0,0.000249,7]
[372125160,1752528656468,-151.0,0.000249,7]
[372125161,1752528656477,-151.0,0.000249,7]
[372125162,1752528656489,-151.0,0.000249,7]
[372125163,1752528656498,-164.976047,0.000249,7]
[372125164,1752528656507,-164.976047,0.000249,7]
[372125165,1752528656517,-151.0,0.000249,7]
[372125166,1752528656526,-151.0,0.000249,7]
[372125167,1752528656537,-151.0,0.000249,7]
[372125168,1752528656546,-204.316408,0.000249,7]
[372125169,1752528656556,-151.0,0.000249,7]
[372125170,1752528656566,-251.898311,0.000249,7]
[372125171,1752528656575,-73244.08302338,0.000249,2]
[372125172,1752528656698,-516.00233263,0.00023899,2]
[372125173,1752528656707,-500.0,0.00023899,2]
[372125174,1752528656717,-330.06521573,0.00023899,2]
[372125175,1752528656741,-169.93478427,0.00023899,2]
[372125176,1752528656751,-80.05823973,0.00023899,2]
[372125177,1752528657968,-231.79188238,0.00023899,2]
[372125178,1752528657980,-13926.53456662,0.000249,2]
[372125179,1752528658255,-460.0,0.00021917,3]
[372125180,1752528658265,-460.0,0.00021917,3]
[372125181,1752528658275,-500.0,0.00023899,2]
[372125182,1752528658284,-500.0,0.00023899,2]
[372125183,1752528658293,-500.0,0.00023899,2]
[372125184,1752528658303,-500.0,0.00023899,2]
[372125185,1752528658313,-174428.56425,0.000249,2]
[372125186,1752528658325,-293624.367634,0.000249,2]
[372125187,1752528658334,-151.0,0.000249,7]
[372125188,1752528658344,-151.0,0.000249,7]
[372125189,1752528658354,-151.0,0.000249,7]
[372125190,1752528658363,-151.0,0.000249,7]
[372125191,1752528658372,-500.0,0.00024905,2]
[372125192,1752528658381,-460.0,0.00024931,3]
[372125193,1752528658391,-467.25,0.00024931,3]
[372125194,1752528658400,-460.0,0.00024931,3]
[372125195,1752528658414,-510.22,0.00024931,3]
[372125196,1752528658423,-803.36,0.00024931,3]
[372125197,1752528658433,-460.0,0.00024931,3]
[372125198,1752528658442,-1256.39,0.00024931,3]
[372125199,1752528658451,-460.0,0.00024931,3]
[372125200,1752528658461,-573.23,0.00024931,3]
[372125201,1752528658471,-529.85,0.00024931,3]
[372125202,1752528658481,-500.0,0.00024932,2]
[372125203,1752528658491,-693.94761808,0.00024949,2]
[372125204,1752528658502,-3102.3763765,0.0002495,2]
[372125205,1752528658511,-274.45386724,0.00024959,2]
[372125206,1752528658520,-2093.25,0.0002497,7]
[372125207,1752528658530,-300.0,0.00025,30]
[372125208,1752528658540,-11735.24753001,0.00025,2]
[372125209,1752528658550,-157.0,0.00025,14]
[372125210,1752528658560,-750.0,0.00025,20]
[372125211,1752528658570,-601.13,0.00025,30]
[372125212,1752528658580,-10020.99007178,0.00025,5]
[372125213,1752528658591,-5000.0,0.00025,7]
[372125214,1752528658602,-4810.80932737,0.00025,7]
[372125215,1752528658613,-23170.45254278,0.00025,60]
[372125216,1752528658627,-12355.83980239,0.00025,60]
[372125217,1752528658818,-952.34218921,0.00025,60]
[372125218,1752528658831,-16468.09902,0.00025,60]
[372125219,1752528658847,-6483.57381313,0.00025,60]
[372125220,1752528658869,-2421.239513,0.00025,60]
[372125221,1752528658880,-17608.45402501,0.00025,60]
[372125222,1752528658890,-167.0,0.00025,3]
[372125223,1752528658899,-20596.14846103,0.00025,2]
[372125224,1752528658911,-18389.45942432,0.00025,2]
[372125225,1752528658966,-43673.380287,0.00025,2]
[372125226,1752528878089,1312.56423837,0.00026137,120]
[372125227,1752529231054,284.136023,0.00013699,2]
[372125234,1752529659714,282.40079029,0.00026137,120]
[372125250,1752529838396,-202.259999,0.00016311,2]
[372125251,1752529838405,-336.5555548,0.00018778,2]
[372125253,1752529838742,-4.37506833,0.00018778,2]
[372125254,1752529838753,-180.0,0.00018878,2]
[372125255,1752529838764,-300.0,0.00020017,2]
[372125256,1752529838773,-5487.22958336,0.00020018,2]
[372125257,1752529838788,-19412.77041664,0.00020018,2]
[372125258,1752529838797,-199.744894,0.00020034,2]
[372125259,1752529838807,-13801.5751004,0.00020046,2]
[372125260,1752529838816,-284.136023,0.00020187,2]
[372125261,1752529838825,-789.57,0.000202,2]
[372125262,1752529838834,-838.70323114,0.00020274,2]
[372125263,1752529838843,-230.73061749,0.00020274,2]
[372125264,1752529838855,-525.46609069,0.00020274,2]
[372125265,1752529838865,-214.33456592,0.00020274,2]
[372125266,1752529838874,-215.47013733,0.00020274,2]
[372125267,1752529838883,-160.0,0.00020274,2]
[372125268,1752529838893,-160.0,0.00020274,2]
[372125269,1752529838903,-160.0,0.00020274,2]
[372125270,1752529838913,-647.0,0.00020291,2]
[372125271,1752529838923,-2154.0,0.00020291,2]
[372125272,1752529838933,-407.0,0.00020291,2]
[372125273,1752529838944,-968.0,0.00020291,2]
[372125274,1752529838954,-401.251,0.00020604,2]
[372125275,1752529838963,-500.0,0.00021164,2]
[372125276,1752529838974,-12500.0,0.00021369,7]
[372125277,1752529838985,-207.4,0.00021474,2]
[372125278,1752529838995,-420.0,0.00021796,2]
[372125279,1752529839006,-436.51424371,0.00021883,2]
[372125280,1752529839016,-396.76943086,0.000219,6]
[372125281,1752529839027,-460.0,0.00021917,3]
[372125282,1752529839036,-460.0,0.00021917,3]
[372125283,1752529839046,-460.0,0.00021917,3]
[372125284,1752529839056,-460.0,0.00021917,3]
[372125285,1752529839066,-232.23016428,0.00021917,3]
[372125286,1752529839075,-214.33456592,0.00021917,3]
[372125287,1752529839085,-572.02,0.00021917,3]
[372125288,1752529839095,-460.0,0.00021917,3]
[372125289,1752529839104,-460.0,0.00021917,3]
[372125290,1752529839114,-460.0,0.00021917,3]
[372125291,1752529839123,-460.0,0.00021917,3]
[372125292,1752529839133,-201.14919503,0.00021917,3]
[372125293,1752529839142,-460.0,0.00021917,3]
[372125294,1752529839152,-460.0,0.00021917,3]
[372125295,1752529839162,-462.43994195,0.00021917,3]
[372125296,1752529839171,-460.0,0.00021917,3]
[372125297,1752529839181,-460.0,0.00021917,3]
[372125298,1752529839191,-460.0,0.00021917,3]
[372125299,1752529839200,-460.0,0.00021917,3]
[372125300,1752529839210,-460.0,0.00021917,3]
[372125301,1752529839219,-460.0,0.00021917,3]
[372125302,1752529839229,-460.0,0.00021917,3]
[372125303,1752529839238,-460.0,0.00021917,3]
[372125304,1752529839248,-460.0,0.00021917,3]
[372125305,1752529839257,-460.0,0.00021917,3]
[372125306,1752529839267,-461.56180502,0.00021917,3]
[372125307,1752529839276,-460.0,0.00021917,3]
[372125308,1752529839286,-460.0,0.00021917,3]
[372125309,1752529839295,-460.0,0.00021917,3]
[372125310,1752529839304,-460.0,0.00021917,3]
[372125311,1752529839314,-460.0,0.00021917,3]
[372125312,1752529839323,-460.0,0.00021917,3]
[372125313,1752529839333,-460.0,0.00021917,3]
[372125314,1752529839342,-460.0,0.00021917,3]
[372125315,1752529839351,-460.0,0.00021917,3]
[372125316,1752529839361,-356.92758961,0.00021917,3]
[372125317,1752529839370,-460.0,0.00021917,3]
[372125318,1752529839380,-460.0,0.00021917,3]
[372125319,1752529839389,-201.39680186,0.00021917,3]
[372125320,1752529839398,-460.0,0.00021917,3]
[372125321,1752529839407,-460.0,0.00021917,3]
[372125322,1752529839417,-460.0,0.00021917,3]
[372125323,1752529839426,-460.0,0.00021917,3]
[372125324,1752529839435,-460.0,0.00021917,3]
[372125325,1752529839444,-460.5364336,0.00021917,3]
[372125326,1752529839454,-460.0,0.00021917,3]
[372125327,1752529839463,-466.93304635,0.00021917,3]
[372125328,1752529839472,-460.0,0.00021917,3]
[372125329,1752529839482,-460.0,0.00021917,3]
[372125330,1752529839491,-460.0,0.00021917,3]
[372125331,1752529839500,-388.4192938,0.00021917,3]
[372125332,1752529839511,-460.0,0.00021917,3]
[372125333,1752529839521,-460.0,0.00021917,3]
[372125334,1752529839530,-460.0,0.00021917,3]
[372125335,1752529839539,-460.0,0.00021917,3]
[372125336,1752529839550,-460.81777929,0.00021917,3]
[372125337,1752529839559,-460.0,0.00021917,3]
[372125338,1752529839569,-460.0,0.00021917,3]
[372125339,1752529839580,-460.0,0.00021917,3]
[372125340,1752529839589,-460.0,0.00021917,3]
[372125341,1752529839598,-460.0,0.00021917,3]
[372125342,1752529839608,-178.58575524,0.00021917,3]
[372125343,1752529839617,-460.0,0.00021917,3]
[372125344,1752529839627,-460.0,0.00021917,3]
[372125345,1752529839636,-460.0,0.00021917,3]
[372125346,1752529839647,-460.0,0.00021917,3]
[372125347,1752529839657,-460.0,0.00021917,3]
[372125348,1752529839666,-460.0,0.00021917,3]
[372125349,1752529839676,-460.0,0.00021917,3]
[372125350,1752529839685,-460.0,0.00021917,3]
[372125351,1752529839701,-460.0,0.00021917,3]
[372125352,1752529839716,-460.0,0.00021917,3]
[372125353,1752529839725,-460.0,0.00021917,3]
[372125354,1752529839734,-460.0,0.00021917,3]
[372125355,1752529839744,-460.0,0.00021917,3]
[372125356,1752529839754,-460.0,0.00021917,3]
[372125357,1752529839764,-460.0,0.00021917,3]
[372125358,1752529839774,-460.0,0.00021917,3]
[372125359,1752529839784,-460.0,0.00021917,3]
[372125360,1752529839794,-460.0,0.00021917,3]
[372125361,1752529839803,-460.0,0.00021917,3]
[372125362,1752529839813,-460.0,0.00021917,3]
[372125363,1752529839823,-460.0,0.00021917,3]
[372125364,1752529839832,-460.0,0.00021917,3]
[372125365,1752529839842,-460.0,0.00021917,3]
[372125366,1752529839857,-460.0,0.00021917,3]
[372125367,1752529839866,-460.0,0.00021917,3]
[372125368,1752529839875,-460.0,0.00021917,3]
[372125369,1752529839885,-460.0,0.00021917,3]
[372125370,1752529839897,-460.0,0.00021917,3]
[372125371,1752529839907,-460.0,0.00021917,3]
[372125372,1752529839918,-460.0,0.00021917,3]
[372125373,1752529839927,-460.0,0.00021917,3]
[372125374,1752529839937,-460.0,0.00021917,3]
[372125375,1752529839947,-460.0,0.00021917,3]
[372125376,1752529839957,-460.0,0.00021917,3]
[372125377,1752529839967,-460.0,0.00021917,3]
[372125378,1752529839976,-460.0,0.00021917,3]
[372125379,1752529839986,-595.72522396,0.00021917,3]
[372125380,1752529839996,-460.0,0.00021917,3]
[372125381,1752529840007,-360.44300163,0.00021917,3]
[372125382,1752529840017,-460.0,0.00021917,3]
[372125383,1752529840027,-460.0,0.00021917,3]
[372125384,1752529840037,-460.0,0.00021917,3]
[372125385,1752529840047,-460.0,0.00021917,3]
[372125386,1752529840057,-460.0,0.00021917,3]
[372125387,1752529840068,-460.0,0.00021917,3]
[372125388,1752529840077,-460.0,0.00021917,3]
[372125389,1752529840087,-460.0,0.00021917,3]
[372125390,1752529840097,-460.0,0.00021917,3]
[372125391,1752529840108,-460.0,0.00021917,3]
[372125392,1752529840118,-460.0,0.00021917,3]
[372125393,1752529840128,-460.0,0.00021917,3]
[372125394,1752529840139,-460.0,0.00021917,3]
[372125395,1752529840148,-460.0,0.00021917,3]
[372125397,1752529840158,-460.0,0.00021917,3]
[372125399,1752529840168,-460.0,0.00021917,3]
[372125401,1752529840177,-460.0,0.00021917,3]
[372125403,1752529840187,-460.0,0.00021917,3]
[372125405,1752529840196,-460.0,0.00021917,3]
[372125407,1752529840206,-460.0,0.00021917,3]
[372125409,1752529840216,-460.0,0.00021917,3]
[372125411,1752529840225,-460.0,0.00021917,3]
[372125413,1752529840235,-452.67279339,0.00021917,3]
[372125415,1752529840245,-373.94717285,0.00021917,3]
[372125417,1752529840254,-460.0,0.00021917,3]
[372125419,1752529840264,-460.0,0.00021917,3]
[372125421,1752529840274,-460.0,0.00021917,3]
[372125423,1752529840284,-460.0,0.00021917,3]
[372125425,1752529840293,-460.0,0.00021917,3]
[372125427,1752529840304,-460.0,0.00021917,3]
[372125429,1752529840314,-460.0,0.00021917,3]
[372125431,1752529840323,-460.0,0.00021917,3]
[372125434,1752529840337,-460.0,0.00021917,3]
[372125436,1752529840346,-460.0,0.00021917,3]
[372125438,1752529840356,-460.0,0.00021917,3]
[372125440,1752529840366,-460.0,0.00021917,3]
[372125442,1752529840375,-460.0,0.00021917,3]
[372125444,1752529840385,-460.0,0.00021917,3]
[372125446,1752529840394,-460.0,0.00021917,3]
[372125448,1752529840403,-254.18663775,0.00021917,3]
[372125450,1752529840414,-460.0,0.00021917,3]
[372125452,1752529840423,-460.0,0.00021917,2]
[372125454,1752529840433,-460.0,0.00021917,3]
[372125456,1752529840443,-460.0,0.00021917,3]
[372125458,1752529840453,-156.33050255,0.00021917,3]
[372125460,1752529840462,-460.07283812,0.00021917,3]
[372125462,1752529840471,-460.0,0.00021917,3]
[372125465,1752529840483,-460.0,0.00021917,3]
[372125467,1752529840492,-460.0,0.00021917,3]
[372125469,1752529840503,-460.0,0.00021917,3]
[372125471,1752529840513,-460.0,0.00021917,3]
[372125473,1752529840523,-364.87746416,0.00021917,3]
[372125475,1752529840532,-460.0,0.00021917,3]
[372125476,1752529840542,-460.0,0.00021917,3]
[372125478,1752529840551,-460.0,0.00021917,3]
[372125481,1752529840561,-460.0,0.00021917,3]
[372125482,1752529840571,-460.0,0.00021917,3]
[372125485,1752529840580,-460.0,0.00021917,3]
[372125487,1752529840590,-460.0,0.00021917,3]
[372125488,1752529840599,-477.69,0.00021917,3]
[372125491,1752529840609,-460.0,0.00021917,3]
[372125493,1752529840618,-460.0,0.00021917,3]
[372125495,1752529840629,-460.0,0.00021917,3]
[372125497,1752529840639,-460.0,0.00021917,3]
[372125499,1752529840648,-460.0,0.00021917,3]
[372125501,1752529840659,-460.0,0.00021917,3]
[372125503,1752529840668,-460.0,0.00021917,3]
[372125505,1752529840678,-460.0,0.00021917,3]
[372125507,1752529840687,-460.0,0.00021917,3]
[372125509,1752529840696,-460.0,0.00021917,3]
[372125511,1752529840706,-460.0,0.00021917,3]
[372125513,1752529840715,-460.0,0.00021917,3]
[372125515,1752529840725,-579.8,0.00021917,3]
[372125517,1752529840735,-460.0,0.00021917,3]
[372125519,1752529840744,-460.0,0.00021917,3]
[372125521,1752529840767,-460.0,0.00021917,3]
[372125523,1752529840778,-460.0,0.00021917,3]
[372125525,1752529840787,-500.0,0.00021917,3]
[372125527,1752529840801,-460.0,0.00021917,3]
[372125529,1752529840810,-460.0,0.00021917,3]
[372125530,1752529840820,-460.0,0.00021917,3]
[372125531,1752529840829,-460.0,0.00021917,3]
[372125532,1752529840840,-460.0,0.00021917,3]
[372125534,1752529840851,-460.0,0.00021917,3]
[372125536,1752529840861,-460.0,0.00021917,3]
[372125537,1752529840871,-460.0,0.00021917,3]
[372125538,1752529840881,-253.66645716,0.00021917,3]
[372125540,1752529840894,-460.0,0.00021917,3]
[372125542,1752529840903,-460.0,0.00021917,3]
[372125544,1752529840913,-460.0,0.00021917,3]
[372125545,1752529840922,-460.0,0.00021917,3]
[372125546,1752529840933,-1116.22,0.00021917,3]
[372125547,1752529840943,-460.0,0.00021917,3]
[372125548,1752529840954,-460.0,0.00021917,3]
[372125549,1752529840963,-460.0,0.00021917,3]
[372125550,1752529840973,-460.0,0.00021917,3]
[372125551,1752529840983,-460.0,0.00021917,3]
[372125552,1752529840993,-460.0,0.00021917,3]
[372125553,1752529841002,-460.0,0.00021917,3]
[372125554,1752529841012,-460.0,0.00021917,3]
[372125555,1752529841021,-460.0,0.00021917,3]
[372125556,1752529841032,-460.0,0.00021917,2]
[372125557,1752529841041,-460.0,0.00021917,3]
[372125558,1752529841052,-460.0,0.00021917,3]
[372125559,1752529841062,-460.0,0.00021917,3]
[372125560,1752529841072,-12600.81778503,0.00021917,3]
[372125561,1752529841081,-511.97,0.00021917,3]
[372125562,1752529841092,-583.0915925,0.00021917,3]
[372125563,1752529841102,-460.26180789,0.00021917,3]
[372125564,1752529841111,-460.0,0.00021917,3]
[372125565,1752529841121,-460.0,0.00021917,3]
[372125566,1752529841131,-460.0,0.00021917,3]
[372125567,1752529841140,-460.0,0.00021917,3]
[372125568,1752529841150,-460.0,0.00021917,3]
[372125569,1752529841160,-460.0,0.00021917,3]
[372125570,1752529841170,-500.00000001,0.00021917,3]
[372125571,1752529841180,-424.0027561,0.00021917,3]
[372125572,1752529841190,-460.0,0.00021917,3]
[372125573,1752529841200,-460.0,0.00021917,3]
[372125574,1752529841210,-460.0,0.00021917,3]
[372125575,1752529841219,-460.0,0.00021917,3]
[372125576,1752529841229,-460.0,0.00021917,3]
[372125577,1752529841238,-460.0,0.00021917,3]
[372125578,1752529841248,-460.0,0.00021917,3]
[372125579,1752529841257,-605.04011904,0.00021917,3]
[372125580,1752529841267,-460.0,0.00021917,3]
[372125581,1752529841276,-460.0,0.00021917,3]
[372125582,1752529841286,-460.0,0.00021917,3]
[372125583,1752529841295,-460.0,0.00021917,3]
[372125584,1752529841305,-460.0,0.00021917,3]
[372125585,1752529841315,-460.0,0.00021917,3]
[372125586,1752529841324,-460.0,0.00021917,3]
[372125587,1752529841334,-460.0,0.00021917,3]
[372125588,1752529841345,-460.0,0.00021917,3]
[372125589,1752529841354,-460.0,0.00021917,3]
[372125590,1752529841365,-432.98456169,0.00021917,3]
[372125591,1752529841375,-460.0,0.00021917,3]
[372125592,1752529841384,-460.0,0.00021917,3]
[372125593,1752529841394,-460.0,0.00021917,3]
[372125594,1752529841404,-460.0,0.00021917,3]
[372125595,1752529841415,-460.0,0.00021917,3]
[372125596,1752529841424,-460.0,0.00021917,3]
[372125597,1752529841435,-150.0,0.00021918,2]
[372125598,1752529841445,-502.32431203,0.00021973,2]
[372125599,1752529841456,-195.6451407,0.00021973,2]
[372125600,1752529841467,-500.0,0.00021973,2]
[372125601,1752529841476,-500.0,0.00021973,2]
[372125602,1752529841486,-500.0,0.00021973,2]
[372125603,1752529841495,-500.91771054,0.00021973,2]
[372125604,1752529841505,-500.0,0.00021973,2]
[372125605,1752529841515,-30765.66,0.00022,7]
[372125606,1752529841706,-396.76943059,0.00022038,6]
[372125607,1752529841730,-396.76943059,0.00022176,6]
[372125608,1752529841741,-460.0,0.00022191,3]
[372125609,1752529841752,-460.0,0.00022191,3]
[372125610,1752529841769,-460.0,0.00022191,3]
[372125611,1752529841778,-460.0,0.00022191,3]
[372125612,1752529841787,-460.0,0.00022191,3]
[372125613,1752529841797,-460.0,0.00022191,3]
[372125614,1752529841807,-460.0,0.00022191,3]
[372125615,1752529841816,-460.0,0.00022191,3]
[372125616,1752529841826,-460.0,0.00022191,3]
[372125617,1752529841835,-460.0,0.00022191,3]
[372125618,1752529841845,-460.0,0.00022191,3]
[372125619,1752529841858,-460.0,0.00022191,3]
[372125620,1752529841867,-283.69647492,0.00022191,3]
[372125621,1752529841877,-460.0,0.00022191,3]
[372125622,1752529841886,-460.0,0.00022191,3]
[372125623,1752529841896,-460.0,0.00022191,3]
[372125624,1752529841907,-460.0,0.00022191,3]
[372125625,1752529841916,-261.10835267,0.00022191,3]
[372125626,1752529841926,-378.47022634,0.00022191,3]
[372125627,1752529841936,-460.0,0.00022191,3]
[372125628,1752529841945,-460.0,0.00022191,3]
[372125629,1752529841955,-460.0,0.00022191,3]
[372125630,1752529841964,-214.2,0.00022191,3]
[372125631,1752529841974,-460.0,0.00022191,3]
[372125632,1752529841984,-328.73431819,0.00022191,3]
[372125633,1752529841994,-460.0,0.00022191,3]
[372125634,1752529842003,-465.86622321,0.00022191,3]
[372125635,1752529842013,-460.0,0.00022191,3]
[372125636,1752529842023,-460.0,0.00022191,3]
[372125637,1752529842032,-460.0,0.00022191,3]
[372125638,1752529842041,-460.0,0.00022191,3]
[372125639,1752529842051,-460.0,0.00022191,3]
[372125640,1752529842060,-477.69,0.00022191,3]
[372125641,1752529842069,-460.0,0.00022191,3]
[372125642,1752529842079,-460.0,0.00022191,3]
[372125643,1752529842088,-460.0,0.00022191,3]
[372125644,1752529842098,-460.0,0.00022191,3]
[372125645,1752529842107,-579.8,0.00022191,3]
[372125646,1752529842116,-460.0,0.00022191,3]
[372125647,1752529842130,-502.79,0.00022191,3]
[372125648,1752529842140,-460.0,0.00022191,3]
[372125649,1752529842149,-460.0,0.00022191,3]
[372125650,1752529842159,-461.24071732,0.00022191,3]
[372125651,1752529842169,-1116.22,0.00022191,3]
[372125652,1752529842179,-578.95,0.00022191,3]
[372125653,1752529842188,-460.0,0.00022191,3]
[372125654,1752529842198,-460.0,0.00022191,3]
[372125655,1752529842208,-460.0,0.00022191,3]
[372125656,1752529842218,-460.0,0.00022191,2]
[372125657,1752529842227,-460.0,0.00022191,3]
[372125658,1752529842237,-511.97,0.00022191,3]
[372125659,1752529842247,-413.31971394,0.00022191,3]
[372125660,1752529842256,-460.0,0.00022191,3]
[372125661,1752529842265,-460.0,0.00022191,3]
[372125662,1752529842275,-460.0,0.00022191,3]
[372125663,1752529842285,-460.0,0.00022191,3]
[372125664,1752529842295,-460.0,0.00022191,3]
[372125665,1752529842305,-460.0,0.00022191,3]
[372125666,1752529842315,-460.0,0.00022191,3]
[372125667,1752529842325,-460.0,0.00022191,3]
[372125668,1752529842334,-460.0,0.00022191,3]
[372125669,1752529842343,-460.0,0.00022191,3]
[372125670,1752529842353,-460.0,0.00022191,3]
[372125671,1752529842363,-460.0,0.00022191,3]
[372125672,1752529842372,-460.0,0.00022191,3]
[372125673,1752529842384,-460.0,0.00022191,3]
[372125674,1752529842394,-396.76943059,0.00022314,7]
[372125675,1752529842403,-396.76943059,0.00022452,7]
[372125676,1752529842413,-460.0,0.00022465,3]
[372125677,1752529842423,-460.0,0.00022465,3]
[372125678,1752529842432,-460.0,0.00022465,3]
[372125679,1752529842441,-460.0,0.00022465,3]
[372125680,1752529842451,-477.69,0.00022465,3]
[372125681,1752529842460,-433.18,0.00022465,3]
[372125682,1752529842470,-579.8,0.00022465,3]
[372125683,1752529842479,-460.0,0.00022465,3]
[372125684,1752529842489,-460.0,0.00022465,3]
[372125685,1752529842499,-1116.22,0.00022465,3]
[372125686,1752529842509,-460.0,0.00022465,3]
[372125687,1752529842518,-460.0,0.00022465,3]
[372125688,1752529842528,-460.0,0.00022465,3]
[372125689,1752529842538,-511.97,0.00022465,3]
[372125690,1752529842547,-460.0,0.00022465,3]
[372125691,1752529842557,-460.0,0.00022465,3]
[372125692,1752529842566,-460.0,0.00022465,3]
[372125693,1752529842578,-460.0,0.00022465,3]
[372125694,1752529842587,-460.0,0.00022465,3]
[372125695,1752529842597,-1000.0,0.00022521,2]
[372125696,1752529842607,-396.76943059,0.0002259,7]
[372125697,1752529842619,-160.0,0.0002265,2]
[372125698,1752529842630,-396.76943059,0.00022728,7]
[372125699,1752529842641,-460.0,0.00022739,3]
[372125700,1752529842652,-460.0,0.00022739,3]
[372125701,1752529842661,-477.69,0.00022739,3]
[372125702,1752529842672,-579.8,0.00022739,3]
[372125703,1752529842682,-460.0,0.00022739,3]
[372125704,1752529842691,-460.0,0.00022739,3]
[372125705,1752529842701,-1116.22,0.00022739,3]
[372125706,1752529842711,-460.0,0.00022739,3]
[372125707,1752529842720,-233.44,0.00022739,3]
[372125708,1752529842730,-460.0,0.00022739,3]
[372125709,1752529842739,-511.97,0.00022739,3]
[372125710,1752529842748,-460.0,0.00022739,3]
[372125711,1752529842758,-460.0,0.00022739,3]
[372125712,1752529842768,-460.0,0.00022739,3]
[372125713,1752529842777,-460.0,0.00022739,3]
[372125714,1752529842790,-460.0,0.00022739,3]
[372125715,1752529842800,-215.0738,0.00022843,2]
[372125716,1752529842810,-396.76943059,0.00022866,8]
[372125717,1752529842820,-160.0,0.00023,3]
[372125718,1752529842831,-1759.33,0.00023,2]
[372125719,1752529842843,-160.0,0.00023,3]
[372125720,1752529842857,-215.47013733,0.00023,3]
[372125721,1752529842870,-525.46609069,0.00023,3]
[372125722,1752529842880,-230.73061749,0.00023,3]
[372125723,1752529842892,-838.70323114,0.00023,3]
[372125724,1752529842902,-512.0,0.00023,7]
[372125725,1752529842912,-396.76943059,0.00023003,8]
[372125726,1752529842921,-460.0,0.00023013,3]
[372125727,1752529842931,-477.69,0.00023013,3]
[372125728,1752529842941,-579.8,0.00023013,3]
[372125729,1752529842950,-460.0,0.00023013,3]
[372125730,1752529842960,-460.0,0.00023013,3]
[372125732,1752529842970,-1116.22,0.00023013,3]
[372125733,1752529842980,-460.0,0.00023013,3]
[372125734,1752529842990,-460.0,0.00023013,3]